fUSD/lending_fUSD_20260625
["ID","MTS","AMOUNT","RATE_DAILY","PERIOD"]
[426412230,1782358232000,-229.11366896,0.00010325,2]
[426412232,1782358232000,-497.30505294,0.00010325,2]
[426412234,1782358232000,-252.10266792,0.00010326,2]
[426412233,1782358232000,-2.69494706,0.00010325,2]
[426412237,1782358232000,-244.0,0.00010326,2]
[426412235,1782358232000,-152.0,0.00010326,2]
[426412236,1782358232000,-152.0,0.00010326,2]
[426412239,1782358232000,-76.98957796,0.00010328,7]
[426412240,1782358232000,-160.0,0.00010334,2]
[426412238,1782358232000,-74.01042204,0.00010328,7]
[426412242,1782358232000,-130.09358286,0.00010475,2]
[426412243,1782358232000,-4869.89641714,0.00010475,2]
[426412248,1782358232000,-150.99,0.00010475,2]
[426412269,1782358232000,-166.66,0.00013008,2]
[426412294,1782358232000,-829.43,0.00014219,2]
[426412273,1782358232000,-150.0,0.00013598,2]
[426412295,1782358232000,-590.55,0.00014251,2]
[426412314,1782358232000,-5800.0,0.000149,2]
[426412298,1782358232000,-976.7,0.000148,2]
[426412297,1782358232000,-209.37325392,0.00014789,2]
[426412301,1782358232000,-10000.0,0.000148,2]
[426412302,1782358232000,-3951.90901388,0.00014811,2]
[426412300,1782358232000,-3951.90901389,0.000148,2]
[426412304,1782358232000,-3951.90901388,0.00014833,2]
[426412299,1782358232000,-609.17983008,0.000148,2]
[426412303,1782358232000,-3951.90901388,0.00014822,2]
[426412308,1782358232000,-3951.90901388,0.00014878,2]
[426412312,1782358232000,-152.0,0.000149,2]
[426412307,1782358232000,-3951.90901388,0.00014867,2]
[426412310,1782358232000,-3951.90901388,0.00014889,2]
[426412306,1782358232000,-3951.90901388,0.00014856,2]
[426412309,1782358232000,-5800.0,0.00014883,2]
[426412311,1782358232000,-5800.0,0.00014891,2]
[426412313,1782358232000,-314.69104226,0.000149,2]
[426412270,1782358232000,-157.24,0.00013522,2]
[426412296,1782358232000,-244.3971161,0.00014789,2]
[426412292,1782358232000,-250.0,0.00014,2]
[426412305,1782358232000,-3951.90901388,0.00014844,2]
[426412289,1782358232000,-170.14,0.00013754,2]
[426412275,1782358232000,-314.0,0.00013598,2]
[426412272,1782358232000,-316.0,0.00013598,2]
[426412271,1782358232000,-316.0,0.00013598,2]
[426412288,1782358232000,-1984.19,0.00013699,2]
[426412277,1782358232000,-151.0,0.00013598,2]
[426412276,1782358232000,-320.0,0.00013598,2]
[426412280,1782358232000,-152.0,0.00013598,2]
[426412279,1782358232000,-318.0,0.00013598,2]
[426412281,1782358232000,-313.0,0.00013598,2]
[426412278,1782358232000,-318.0,0.00013598,2]
[426412274,1782358232000,-320.0,0.00013598,2]
[426412282,1782358232000,-315.0,0.00013598,2]
[426412287,1782358232000,-200.0,0.00013699,2]
[426412285,1782358232000,-250.0,0.00013641,2]
[426412284,1782358232000,-216.45114417,0.00013613,2]
[426412290,1782358232000,-3314.32,0.00013819,2]
[426412286,1782358232000,-736.0,0.00013669,2]
[426412293,1782358232000,-165.59,0.00014214,2]
[426412291,1782358232000,-181.654299,0.00014,2]
[426412283,1782358232000,-338.63341566,0.00013598,2]
[426412316,1782358233000,-3951.90901388,0.000149,2]
[426412315,1782358233000,-185.01096755,0.000149,2]
[426412317,1782358233000,-317.0,0.00014938,2]
[426412318,1782358233000,-317.0,0.00014938,2]
[426412320,1782358233000,-151.89522001,0.0001499,2]
[426412321,1782358233000,-109765.81724971,0.00015,2]
[426412319,1782358233000,-151.89522001,0.0001499,2]
[426412327,1782358238000,-735.30399282,0.00015,2]
[426412328,1782358238000,-1332.00926807,0.00015,2]
[426412326,1782358238000,-296.65887507,0.00015,2]
[426412362,1782358240000,-5236786.96639995,0.00015,2]
[426412369,1782358243000,-12.19838739,0.00010324,2]
[426412368,1782358243000,-500.0,0.00010324,2]
[426412370,1782358243000,-272474.8305221,0.00015,2]
[426412373,1782358243000,-974.54860411,0.00015,2]
[426412372,1782358243000,-2022.96697642,0.00015,2]
[426412374,1782358243000,-294.01991019,0.00015,2]
[426412371,1782358243000,-795.64,0.00015,2]
[426412385,1782358246000,-7897.23236135,0.00015,7]
[426412384,1782358246000,-823.01,0.00015,2]
[426412383,1782358246000,-478.86423169,0.00015,2]
[426412386,1782358247000,-2763.68585662,0.00015,7]
[426412395,1782358698000,161.0,0.00028695,30]
[426412396,1782358700000,161.0,0.00029695,30]
[426412397,1782358701000,161.0,0.00030695,30]
[426412398,1782358734000,160.48406582,0.00028695,30]
[426412399,1782358765000,600.0,0.00031507,30]
[426412401,1782358902000,681445.59404739,0.000315,30]
[426412402,1782359097000,250.1584813,0.00031506,120]
[426412404,1782359177000,187.49800734,0.00031506,120]
[426412478,1782359259000,10000.0,0.00031507,30]
[426412479,1782359318000,229.2978303,0.00031507,30]
[426412498,1782359386000,243.26,0.00030137,30]
[426412499,1782359388000,243.26,0.00030441,30]
[426412501,1782359388000,243.26,0.0003105,30]
[426412500,1782359388000,243.26,0.00030746,30]
[426412502,1782359389000,243.26,0.00031355,30]
[426412503,1782359396000,30000.0,0.00031,30]
[426412534,1782359431000,-151.0,0.00011091,2]
[426412532,1782359431000,-151.0,0.00011091,2]
[426412522,1782359431000,-150.0,0.00011091,2]
[426412531,1782359431000,-152.0,0.00011091,2]
[426412529,1782359431000,-151.0,0.00011091,2]
[426412530,1782359431000,-153.0,0.00011091,2]
[426412527,1782359431000,-153.0,0.00011091,2]
[426412528,1782359431000,-153.0,0.00011091,2]
[426412524,1782359431000,-151.0,0.00011091,2]
[426412526,1782359431000,-151.0,0.00011091,2]
[426412525,1782359431000,-150.0,0.00011091,2]
[426412521,1782359431000,-153.0,0.00011091,2]
[426412511,1782359431000,-152.0,0.00010991,2]
[426412520,1782359431000,-149.73214729,0.00010991,2]
[426412516,1782359431000,-151.0,0.00010991,2]
[426412517,1782359431000,-151.0,0.00010991,2]
[426412514,1782359431000,-151.0,0.00010991,2]
[426412519,1782359431000,-87.28158875,0.00010991,2]
[426412518,1782359431000,-151.0,0.00010991,2]
[426412515,1782359431000,-151.0,0.00010991,2]
[426412512,1782359431000,-152.0,0.00010991,2]
[426412513,1782359431000,-152.0,0.00010991,2]
[426412510,1782359431000,-151.0,0.00010991,2]
[426412509,1782359431000,-151.0,0.00010991,2]
[426412536,1782359431000,-1379.14,0.00011981,2]
[426412523,1782359431000,-150.0,0.00011091,2]
[426412538,1782359431000,-150.0,0.00012008,2]
[426412560,1782359431000,-150.0,0.00012409,2]
[426412554,1782359431000,-153.0,0.00012101,2]
[426412552,1782359431000,-151.0,0.00012101,2]
[426412579,1782359431000,-151.0,0.00012945,2]
[426412580,1782359431000,-320.0,0.00012945,2]
[426412581,1782359431000,-312.0,0.00012945,2]
[426412578,1782359431000,-313.0,0.00012945,2]
[426412577,1782359431000,-321.0,0.00012945,2]
[426412575,1782359431000,-151.0,0.00012945,2]
[426412576,1782359431000,-315.0,0.00012945,2]
[426412574,1782359431000,-151.26,0.00012812,2]
[426412573,1782359431000,-151.0,0.00012792,2]
[426412571,1782359431000,-151.0,0.00012538,2]
[426412569,1782359431000,-152.0,0.00012418,2]
[426412570,1782359431000,-152.0,0.00012441,2]
[426412572,1782359431000,-331.77,0.00012791,2]
[426412566,1782359431000,-165.59,0.00012411,2]
[426412540,1782359431000,-158.6,0.00012008,2]
[426412568,1782359431000,-152.0,0.00012413,2]
[426412542,1782359431000,-151.26,0.00012012,2]
[426412546,1782359431000,-151.0,0.00012101,2]
[426412548,1782359431000,-150.0,0.00012101,2]
[426412544,1782359431000,-152.0,0.00012101,2]
[426412550,1782359431000,-151.0,0.00012101,2]
[426412564,1782359431000,-150.99,0.00012409,2]
[426412562,1782359431000,-9999.99,0.00012409,2]
[426412556,1782359431000,-150.0,0.00012101,2]
[426412567,1782359431000,-151.26,0.00012412,2]
[426412558,1782359431000,-433.5,0.00012101,2]
[426412622,1782359432000,-150.0,0.00013145,2]
[426412621,1782359432000,-310.0,0.00013145,2]
[426412619,1782359432000,-150.0,0.00013145,2]
[426412613,1782359432000,-309.0,0.00013048,2]
[426412616,1782359432000,-309.0,0.00013067,2]
[426412615,1782359432000,-317.0,0.00013062,2]
[426412614,1782359432000,-319.0,0.00013049,2]
[426412618,1782359432000,-320.0,0.00013145,2]
[426412620,1782359432000,-315.0,0.00013145,2]
[426412617,1782359432000,-312.0,0.00013145,2]
[426412612,1782359432000,-2834.33847152,0.00013045,2]
[426412625,1782359432000,-151.0,0.00013145,2]
[426412635,1782359432000,-1000.0,0.00013145,2]
[426412626,1782359432000,-315.0,0.00013145,2]
[426412624,1782359432000,-321.0,0.00013145,2]
[426412629,1782359432000,-1000.0,0.00013145,2]
[426412628,1782359432000,-318.0,0.00013145,2]
[426412627,1782359432000,-315.0,0.00013145,2]
[426412630,1782359432000,-1000.0,0.00013145,2]
[426412633,1782359432000,-1000.0,0.00013145,2]
[426412631,1782359432000,-1000.0,0.00013145,2]
[426412632,1782359432000,-1000.0,0.00013145,2]
[426412634,1782359432000,-1000.0,0.00013145,2]
[426412611,1782359432000,-150.0,0.00013045,2]
[426412642,1782359432000,-1000.0,0.00013145,2]
[426412623,1782359432000,-318.0,0.00013145,2]
[426412608,1782359432000,-317.0,0.00013045,2]
[426412596,1782359432000,-311.0,0.00012946,2]
[426412610,1782359432000,-313.0,0.00013045,2]
[426412637,1782359432000,-1000.0,0.00013145,2]
[426412583,1782359432000,-316.0,0.00012945,2]
[426412582,1782359432000,-151.0,0.00012945,2]
[426412584,1782359432000,-152.0,0.00012945,2]
[426412585,1782359432000,-151.0,0.00012945,2]
[426412586,1782359432000,-500.0,0.00012945,2]
[426412587,1782359432000,-311.0,0.00012945,2]
[426412588,1782359432000,-153.0,0.00012945,2]
[426412592,1782359432000,-321.0,0.00012946,2]
[426412593,1782359432000,-321.0,0.00012946,2]
[426412591,1782359432000,-150.0,0.00012945,2]
[426412590,1782359432000,-321.0,0.00012945,2]
[426412609,1782359432000,-315.0,0.00013045,2]
[426412594,1782359432000,-150.0,0.00012946,2]
[426412595,1782359432000,-117295.63,0.00012946,2]
[426412598,1782359432000,-151.0,0.00012946,2]
[426412597,1782359432000,-310.0,0.00012946,2]
[426412599,1782359432000,-319.0,0.00012946,2]
[426412601,1782359432000,-152.0,0.00013045,2]
[426412602,1782359432000,-151.0,0.00013045,2]
[426412603,1782359432000,-309.0,0.00013045,2]
[426412604,1782359432000,-151.0,0.00013045,2]
[426412605,1782359432000,-318.0,0.00013045,2]
[426412606,1782359432000,-320.0,0.00013045,2]
[426412600,1782359432000,-314.0,0.00012946,2]
[426412607,1782359432000,-151.0,0.00013045,2]
[426412589,1782359432000,-314.0,0.00012945,2]
[426412638,1782359432000,-1000.0,0.00013145,2]
[426412694,1782359432000,-2103.58,0.00013709,2]
[426412636,1782359432000,-1000.0,0.00013145,2]
[426412675,1782359432000,-312.0,0.00013146,2]
[426412672,1782359432000,-311.0,0.00013146,2]
[426412673,1782359432000,-151.0,0.00013146,2]
[426412674,1782359432000,-316.0,0.00013146,2]
[426412671,1782359432000,-317.0,0.00013146,2]
[426412676,1782359432000,-150.0,0.00013146,2]
[426412678,1782359432000,-309.0,0.00013146,2]
[426412677,1782359432000,-316.0,0.00013146,2]
[426412680,1782359432000,-315.0,0.00013146,2]
[426412679,1782359432000,-152.0,0.00013146,2]
[426412639,1782359432000,-1000.0,0.00013145,2]
[426412683,1782359432000,-151.0,0.00013146,2]
[426412681,1782359432000,-310.0,0.00013146,2]
[426412682,1782359432000,-320.0,0.00013146,2]
[426412686,1782359432000,-151.0,0.00013146,2]
[426412684,1782359432000,-312.0,0.00013146,2]
[426412687,1782359432000,-318.0,0.00013146,2]
[426412688,1782359432000,-317.0,0.00013146,2]
[426412689,1782359432000,-151.26,0.00013213,2]
[426412690,1782359432000,-319.0,0.0001336,2]
[426412691,1782359432000,-166.66,0.00013432,2]
[426412692,1782359432000,-255.0,0.00013501,2]
[426412693,1782359432000,-200.0,0.00013699,2]
[426412696,1782359432000,-2834.33847147,0.00013971,2]
[426412695,1782359432000,-166.66,0.00013715,2]
[426412669,1782359432000,-152.0,0.00013146,2]
[426412670,1782359432000,-315.0,0.00013146,2]
[426412685,1782359432000,-316.0,0.00013146,2]
[426412666,1782359432000,-151.0,0.00013146,2]
[426412667,1782359432000,-314.0,0.00013146,2]
[426412640,1782359432000,-1000.0,0.00013145,2]
[426412641,1782359432000,-1000.0,0.00013145,2]
[426412643,1782359432000,-1000.0,0.00013145,2]
[426412646,1782359432000,-1000.0,0.00013145,2]
[426412644,1782359432000,-1000.0,0.00013145,2]
[426412645,1782359432000,-1000.0,0.00013145,2]
[426412647,1782359432000,-1000.0,0.00013145,2]
[426412650,1782359432000,-1000.0,0.00013145,2]
[426412653,1782359432000,-319.0,0.00013145,2]
[426412654,1782359432000,-310.0,0.00013145,2]
[426412652,1782359432000,-151.0,0.00013145,2]
[426412651,1782359432000,-1000.0,0.00013145,2]
[426412649,1782359432000,-1000.0,0.00013145,2]
[426412655,1782359432000,-150.0,0.00013145,2]
[426412648,1782359432000,-1000.0,0.00013145,2]
[426412665,1782359432000,-317.0,0.00013146,2]
[426412662,1782359432000,-150.0,0.00013146,2]
[426412660,1782359432000,-320.0,0.00013146,2]
[426412661,1782359432000,-310.0,0.00013146,2]
[426412664,1782359432000,-313.0,0.00013146,2]
[426412668,1782359432000,-311.0,0.00013146,2]
[426412663,1782359432000,-313.0,0.00013146,2]
[426412658,1782359432000,-311.0,0.00013146,2]
[426412656,1782359432000,-309.0,0.00013146,2]
[426412657,1782359432000,-319.0,0.00013146,2]
[426412659,1782359432000,-152.0,0.00013146,2]
[426412716,1782359433000,-320.0,0.00014348,2]
[426412714,1782359433000,-310.0,0.0001427,2]
[426412717,1782359433000,-153.0,0.00014348,2]
[426412715,1782359433000,-166.66,0.0001428,2]
[426412718,1782359433000,-319.0,0.00014348,2]
[426412720,1782359433000,-313.0,0.00014348,2]
[426412722,1782359433000,-153.0,0.00014348,2]
[426412723,1782359433000,-321.0,0.00014348,2]
[426412724,1782359433000,-151.0,0.00014348,2]
[426412710,1782359433000,-316.0,0.00014248,2]
[426412721,1782359433000,-239.59034079,0.00014348,2]
[426412707,1782359433000,-320.0,0.00014248,2]
[426412698,1782359433000,-151.0,0.00014248,2]
[426412711,1782359433000,-311.0,0.00014248,2]
[426412713,1782359433000,-319.0,0.00014248,2]
[426412708,1782359433000,-153.0,0.00014248,2]
[426412706,1782359433000,-315.0,0.00014248,2]
[426412705,1782359433000,-153.0,0.00014248,2]
[426412703,1782359433000,-316.0,0.00014248,2]
[426412719,1782359433000,-151.0,0.00014348,2]
[426412701,1782359433000,-150.0,0.00014248,2]
[426412704,1782359433000,-315.0,0.00014248,2]
[426412700,1782359433000,-316.0,0.00014248,2]
[426412699,1782359433000,-159.31333419,0.00014248,2]
[426412697,1782359433000,-166.66,0.00013997,2]
[426412712,1782359433000,-152.0,0.00014248,2]
[426412725,1782359433000,-151.0,0.00014348,2]
[426412702,1782359433000,-313.0,0.00014248,2]
[426412727,1782359433000,-315.0,0.00014348,2]
[426412753,1782359433000,-16324.55965413,0.000149,2]
[426412752,1782359433000,-269.73517908,0.000149,2]
[426412754,1782359433000,-1373.76632086,0.000149,2]
[426412749,1782359433000,-175.45,0.00014867,2]
[426412751,1782359433000,-2834.33847147,0.00014897,2]
[426412750,1782359433000,-246.85911248,0.0001489,2]
[426412748,1782359433000,-166.66,0.00014846,2]
[426412745,1782359433000,-433.0,0.00014693,2]
[426412746,1782359433000,-2626.94248753,0.000148,2]
[426412744,1782359433000,-166.66,0.00014563,2]
[426412743,1782359433000,-310.71110687,0.00014523,2]
[426412742,1782359433000,-331.77,0.0001439,2]
[426412747,1782359433000,-1248.33208571,0.000148,2]
[426412726,1782359433000,-320.0,0.00014348,2]
[426412738,1782359433000,-541.20999985,0.0001436,2]
[426412728,1782359433000,-153.0,0.00014348,2]
[426412729,1782359433000,-318.0,0.00014348,2]
[426412732,1782359433000,-152.69078989,0.00014348,2]
[426412735,1782359433000,-150.0,0.00014348,2]
[426412733,1782359433000,-152.0,0.00014348,2]
[426412730,1782359433000,-152.0,0.00014348,2]
[426412736,1782359433000,-311.0,0.00014348,2]
[426412734,1782359433000,-313.0,0.00014348,2]
[426412737,1782359433000,-309.0,0.00014348,2]
[426412739,1782359433000,-216.45114417,0.00014362,2]
[426412740,1782359433000,-160.0,0.00014363,2]
[426412731,1782359433000,-312.0,0.00014348,2]
[426412741,1782359433000,-160.0,0.00014363,2]
[426412769,1782359437000,-963.85919665,0.000149,2]
[426412768,1782359437000,-416.72388496,0.000149,2]
[426412767,1782359437000,-2925.0445612,0.000149,2]
[426412766,1782359437000,-506.35371671,0.000148,2]
[426412765,1782359437000,-2376.03912973,0.000148,2]
[426412776,1782359439000,-16372.7883815,0.000149,2]
[426412816,1782359445000,-541.20888893,0.00014484,2]
[426412819,1782359445000,-4031.947898,0.000149,2]
[426412818,1782359445000,-150.0,0.000149,2]
[426412817,1782359445000,-17208.79111107,0.000149,2]
[426412820,1782359446000,-889.365,0.000149,2]
[426413647,1782359576000,152.0,0.00028695,30]
[426413648,1782359577000,152.0,0.00029695,30]
[426413649,1782359579000,152.0,0.00030695,30]
[426413650,1782359678000,2188.78826258,8e-05,2]
[426413651,1782359765000,227.0,0.00030137,120]
[426413655,1782359856000,15056.66252374,0.0001,2]
[426413656,1782359862000,13780.06120367,9.04e-05,2]
[426413657,1782359864000,326.49,9.595e-05,2]
[426413659,1782359865000,326.49,9.848e-05,2]
[426413658,1782359865000,326.49,9.721e-05,2]
[426413660,1782359865000,326.49,9.974e-05,2]
[426413664,1782360004000,311.65,9.739e-05,2]
[426413663,1782360004000,311.65,9.691e-05,2]
[426413662,1782360004000,311.65,9.643e-05,2]
[426413661,1782360004000,311.65,9.595e-05,2]
[426413665,1782360005000,311.65,9.787e-05,2]
[426413666,1782360005000,311.65,9.835e-05,2]
[426413667,1782360005000,311.65,9.884e-05,2]
[426413669,1782360006000,311.65,9.98e-05,2]
[426413668,1782360006000,311.65,9.932e-05,2]
[426413677,1782360139000,10168.2048203,0.00031507,30]
[426413678,1782360142000,309.32,9.638e-05,2]
[426413681,1782360143000,309.32,9.805e-05,2]
[426413680,1782360143000,309.32,9.749e-05,2]
[426413679,1782360143000,309.32,9.694e-05,2]
[426413684,1782360144000,309.32,9.972e-05,2]
[426413683,1782360144000,309.32,9.916e-05,2]
[426413682,1782360144000,309.32,9.861e-05,2]
[426413685,1782360159000,186.98,0.0003131,30]
[426413686,1782360287000,10760.34,0.00031,30]
[426413695,1782360414000,327.1,0.000309,120]
[426413697,1782360445000,152.0,0.00028694,30]
[426413698,1782360447000,152.0,0.00029694,30]
[426413699,1782360448000,152.0,0.00030694,30]
[426413702,1782360550000,-183.853028,0.00010028,2]
[426413746,1782360574000,5416.56585381,0.000315,120]
[426413761,1782360631000,-160.0,0.00010086,2]
[426413775,1782360631000,-311.65,0.00010172,2]
[426413772,1782360631000,-311.65,0.00010124,2]
[426413773,1782360631000,-212.47496126,0.00010139,2]
[426413768,1782360631000,-500.0,0.00010087,2]
[426413766,1782360631000,-500.0,0.00010087,2]
[426413765,1782360631000,-500.0,0.00010087,2]
[426413770,1782360631000,-263.49974598,0.000101,2]
[426413763,1782360631000,-500.0,0.00010087,2]
[426413758,1782360631000,-309.32,0.00010028,2]
[426413767,1782360631000,-500.0,0.00010087,2]
[426413771,1782360631000,-326.49,0.000101,2]
[426413769,1782360631000,-260.71332512,0.00010087,2]
[426413762,1782360631000,-500.0,0.00010087,2]
[426413759,1782360631000,-311.65,0.00010076,2]
[426413760,1782360631000,-309.32,0.00010084,2]
[426413757,1782360631000,-127.796972,0.00010028,2]
[426413774,1782360631000,-96.84503874,0.00010139,2]
[426413764,1782360631000,-500.0,0.00010087,2]
[426413780,1782360631000,-311.65,0.00010268,2]
[426413776,1782360631000,-309.32,0.00010195,2]
[426413778,1782360631000,-326.49,0.00010226,2]
[426413777,1782360631000,-311.65,0.0001022,2]
[426413800,1782360631000,-152.0,0.00010349,2]
[426413797,1782360631000,-152.0,0.00010348,2]
[426413799,1782360631000,-152.0,0.00010349,2]
[426413796,1782360631000,-152.0,0.00010348,2]
[426413792,1782360631000,-152.0,0.00010348,2]
[426413793,1782360631000,-152.0,0.00010348,2]
[426413794,1782360631000,-292.0,0.00010348,2]
[426413790,1782360631000,-152.0,0.00010348,2]
[426413788,1782360631000,-152.0,0.00010348,2]
[426413798,1782360631000,-296.0,0.00010348,2]
[426413789,1782360631000,-292.0,0.00010348,2]
[426413786,1782360631000,-152.0,0.00010348,2]
[426413785,1782360631000,-152.0,0.00010348,2]
[426413781,1782360631000,-309.32,0.00010306,2]
[426413779,1782360631000,-309.32,0.00010251,2]
[426413782,1782360631000,-311.65,0.00010316,2]
[426413784,1782360631000,-152.0,0.00010348,2]
[426413783,1782360631000,-150.0,0.00010347,2]
[426413791,1782360631000,-152.0,0.00010348,2]
[426413842,1782360632000,-152.0,0.00010461,2]
[426413839,1782360632000,-152.0,0.00010461,2]
[426413838,1782360632000,-311.65,0.00010461,2]
[426413837,1782360632000,-309.32,0.00010418,2]
[426413841,1782360632000,-152.0,0.00010461,2]
[426413831,1782360632000,-152.0,0.00010412,2]
[426413836,1782360632000,-311.65,0.00010413,2]
[426413835,1782360632000,-248.0,0.00010412,2]
[426413834,1782360632000,-152.0,0.00010412,2]
[426413844,1782360632000,-309.32,0.00010474,2]
[426413833,1782360632000,-296.0,0.00010412,2]
[426413854,1782360632000,-216.75,0.00010806,2]
[426413849,1782360632000,-309.35,0.00010529,2]
[426413847,1782360632000,-309.32,0.00010529,2]
[426413852,1782360632000,-326.49,0.00010605,2]
[426413853,1782360632000,-311.65,0.00010605,2]
[426413846,1782360632000,-311.65,0.00010509,2]
[426413850,1782360632000,-311.65,0.00010557,2]
[426413845,1782360632000,-326.49,0.00010479,2]
[426413851,1782360632000,-200.0,0.00010604,2]
[426413848,1782360632000,-309.34,0.00010529,2]
[426413840,1782360632000,-152.0,0.00010461,2]
[426413856,1782360632000,-166.66,0.00010959,2]
[426413855,1782360632000,-170.53,0.00010943,2]
[426413857,1782360632000,-4588.50509322,0.00011,2]
[426413843,1782360632000,-192.0,0.00010461,2]
[426413832,1782360632000,-152.0,0.00010412,2]
[426413822,1782360632000,-152.0,0.00010361,2]
[426413830,1782360632000,-296.0,0.00010412,2]
[426413859,1782360632000,-150.0,0.00011,2]
[426413801,1782360632000,-296.0,0.00010349,2]
[426413803,1782360632000,-152.0,0.00010349,2]
[426413815,1782360632000,-292.0,0.00010361,2]
[426413814,1782360632000,-152.0,0.00010361,2]
[426413802,1782360632000,-152.0,0.00010349,2]
[426413806,1782360632000,-296.0,0.00010349,2]
[426413809,1782360632000,-689.05721025,0.0001035,2]
[426413807,1782360632000,-152.0,0.00010349,2]
[426413808,1782360632000,-248.0,0.00010349,2]
[426413810,1782360632000,-326.49,0.00010353,2]
[426413813,1782360632000,-152.0,0.00010361,2]
[426413829,1782360632000,-152.0,0.00010412,2]
[426413811,1782360632000,-152.0,0.00010361,2]
[426413816,1782360632000,-152.0,0.00010361,2]
[426413817,1782360632000,-152.0,0.00010361,2]
[426413820,1782360632000,-152.0,0.00010361,2]
[426413818,1782360632000,-296.0,0.00010361,2]
[426413821,1782360632000,-152.0,0.00010361,2]
[426413823,1782360632000,-292.0,0.00010361,2]
[426413826,1782360632000,-309.32,0.00010362,2]
[426413827,1782360632000,-311.65,0.00010365,2]
[426413819,1782360632000,-152.0,0.00010361,2]
[426413824,1782360632000,-152.0,0.00010361,2]
[426413825,1782360632000,-248.0,0.00010361,2]
[426413828,1782360632000,-152.0,0.00010412,2]
[426413812,1782360632000,-152.0,0.00010361,2]
[426413858,1782360632000,-151.0,0.00011,2]
[426413864,1782360632000,-166.66,0.00011102,2]
[426413860,1782360632000,-150.0,0.00011,2]
[426413892,1782360632000,-152.0,0.00012945,2]
[426413898,1782360632000,-200.0,0.00013699,2]
[426413897,1782360632000,-483.67122643,0.0001354,2]
[426413896,1782360632000,-500.0,0.00013534,2]
[426413900,1782360632000,-5091.65,0.00013699,2]
[426413910,1782360632000,-3161.24833919,0.00014633,2]
[426413899,1782360632000,-5397.84,0.00013699,2]
[426413901,1782360632000,-736.0,0.000137,2]
[426413902,1782360632000,-250.0,0.00014,2]
[426413903,1782360632000,-821.99,0.00014497,2]
[426413904,1782360632000,-1370.93,0.00014497,2]
[426413909,1782360632000,-3161.2483392,0.000146,2]
[426413894,1782360632000,-170.14,0.00013158,2]
[426413907,1782360632000,-500.0,0.00014575,2]
[426413905,1782360632000,-33046.24,0.00014497,2]
[426413908,1782360632000,-170.53,0.0001459,2]
[426413911,1782360632000,-2500.0,0.00014667,2]
[426413912,1782360632000,-3161.24833919,0.00014667,2]
[426413915,1782360632000,-2000.0,0.000147,2]
[426413913,1782360632000,-271.01895914,0.000147,2]
[426413917,1782360632000,-2858.41030543,0.000147,2]
[426413918,1782360632000,-222.96193526,0.000147,2]
[426413916,1782360632000,-2327.01624264,0.000147,2]
[426413914,1782360632000,-25300.3397,0.000147,2]
[426413919,1782360632000,-325.91892822,0.000147,2]
[426413867,1782360632000,-152.0,0.00011361,2]
[426413906,1782360632000,-541.20500095,0.00014513,2]